[Event "Vugar Gashimov Memorial Blitz 2024"]
[Site "Shusha"]
[Date "2024.09.28"]
[Round "3.2"]
[White "Abdusattorov, Nodirbek"]
[Black "Nepomniachtchi, Ian"]
[Result "1-0"]
[ECO "C44"]
[WhiteElo "2766"]
[BlackElo "2755"]
[Annotator "TA"]
[PlyCount "65"]
[EventDate "2024.09.28"]
[EventType "tourn"]
[EventCountry "AZE"]
[SourceTitle "playchess.com"]
[Source "ChessBase"]
[SourceQuality "1"]
[TimeControl "180+2"]

{[%evp 13,65,0,0,-26,4,0,5,23,30,25,14,0,22,-41,51,41,55,54,148,152,210,203,193,144,140,125,210,175,164,164,162,145,148,129,133,131,123,99,125,138,150,92,178,96,296,329,310,317,687,688,895,892,1893,1774]} 1. e4 {[%emt 0:00:01]} e5 {[%emt 0:00:01]} 2. Nf3 {[%emt 0:00:00]} Nf6 {[%emt 0:00:01]} 3. d3 {[%emt 0:00:01]} Nc6 {[%emt 0:00:02]} 4. g3 {[%emt 0:00:01]} Bc5 {[%emt 0:00:02]} 5. Bg2 {[%emt 0:00:01]} O-O {[%emt 0:00:01]} 6. O-O {[%emt 0:00:03]} d5 {[%emt 0:00:01]} 7. exd5 {[%emt 0:00:01]} Nxd5 {[%emt 0:00:01]} 8. a3 {[%emt 0:00:03]} a5 {[%emt 0:00:04]} 9. Nc3 {[%emt 0:00:03]} Nxc3 {[%emt 0:00:13]} 10. bxc3 {[%emt 0:00:02] The position is equal.} h6 {[%emt 0:00:16]} 11. Re1 {[%emt 0:00:08]} Re8 {[%emt 0:00:04]} 12. Rb1 {[%emt 0:00:04][%cal Od3d4]} a4 {[%emt 0:00:14][%cal Oe5e4]} 13. Rb5 {[%emt 0:00:07]} (13. Nd2 $11) 13... Bd6 {[%emt 0:00:03]} ({Better is} 13... Qe7 $15) 14. Nd2 $1 $14 {[%emt 0:00:04]} Ra6 {[%emt 0:00:19]} 15. Nc4 {[%emt 0:00:04] Prevents Rb6.} Na7 {[%emt 0:00:12]} (15... Bf8 $14) 16. Rxb7 $16 {[%emt 0:00:05]} Bxb7 {[%emt 0:00:06]} (16... Nc6 $16 17. Nxd6 cxd6) 17. Bxb7 $18 {[%emt 0:00:01]} Rc6 {[%emt 0:00:01]} 18. Bxc6 {[%emt 0:00:06]} (18. Qg4 $18) 18... Nxc6 $16 {[%emt 0:00:01]} 19. Qg4 {[%emt 0:00:08]} Re6 {[%emt 0:00:22]} (19... Qc8 $16 {was worth a try.} 20. Qxc8 Rxc8) 20. Ne3 {[%emt 0:00:08]} Qa8 {[%emt 0:00:05]} 21. Nf5 {[%emt 0:00:14][%csl LRg7,LRh6]} Rg6 {[%emt 0:00:00]} 22. Qe4 $40 {[%emt 0:00:01][%mdl 128] White attacks with force.} Qa6 {[%emt 0:00:04]} 23. h4 {[%emt 0:00:17][%cal Bh2h4,Bh4h5][%mdl 32] [#] aiming for h5.} Ne7 {[%emt 0:00:01]} 24. h5 {[%emt 0:00:29]} Re6 {[%emt 0:00:00]} 25. Ne3 {[%emt 0:00:01] White has more active pieces.} Qa5 {[%emt 0:00:07]} 26. Bd2 {[%emt 0:00:09]} Qb5 {[%emt 0:00:22] Repels Rb1} 27. Nc4 {[%emt 0:00:16]} (27. Qa8+ $142 Kh7 28. Qf8) 27... Kh8 {[%emt 0:00:07]} (27... Nc8 $16) 28. g4 {[%emt 0:00:19]} ({White should play} 28. Qa8+ $18 Kh7 29. Nxd6 cxd6 30. c4) 28... f5 $2 {[%emt 0:00:23] [#] This move loses the game for Black.} 29. gxf5 $18 {[%emt 0:00:06]} Rf6 {[%emt 0:00:00]} 30. Nxe5 {[%emt 0:00:18]} Rxf5 $2 {[%emt 0:00:01]} (30... Qa5 31. Nc4 Qxf5 32. Qxf5 Nxf5 33. Nxd6 Nxd6) 31. c4 {[%emt 0:00:10] White is clearly winning.} Qb6 {[%emt 0:00:44]} 32. Ng6+ {[%emt 0:00:01]} Kh7 {[%emt 0:00:02]} 33. d4 {[%emt 0:00:06] Weighted Error Value: White=0.18 (very precise) /Black=0.69.  Loses game:     	---       	Black=1      Mistake:       	White=4     	Black=6      Inaccurate:     	---       	Black=2      OK:         	White=6     	Black=6      Best:        	White=4     	Black=1      Strong:       	White=1     	---} (33. Nxe7 $2 {gets mated.} Qxf2+ 34. Kh1 Qh2#) 1-0

[Event "Vugar Gashimov Memorial Blitz 2024"]
[Site "Shusha"]
[Date "2024.09.28"]
[Round "3.3"]
[White "Rapport, Richard"]
[Black "Suleymanli, Aydin"]
[Result "0-1"]
[ECO "C86"]
[WhiteElo "2715"]
[BlackElo "2632"]
[Annotator "RC"]
[PlyCount "163"]
[EventDate "2024.09.28"]
[EventType "tourn"]
[EventCountry "AZE"]
[SourceTitle "playchess.com"]
[Source "ChessBase"]
[SourceQuality "1"]
[TimeControl "180+2"]

1. e4 {[%emt 0:00:02]} e5 {[%emt 0:00:00]} 2. Nf3 {[%emt 0:00:01]} Nc6 {[%emt 0:00:01]} 3. Bb5 {[%emt 0:00:01]} a6 {[%emt 0:00:01]} 4. Ba4 {[%emt 0:00:01]} Nf6 {[%emt 0:00:01]} 5. O-O {[%emt 0:00:01]} Be7 {[%emt 0:00:01]} 6. Qe2 {[%emt 0:00:02]} b5 {[%emt 0:00:03]} 7. Bb3 {[%emt 0:00:01]} O-O {[%emt 0:00:12]} 8. c3 {[%emt 0:00:01]} d6 {[%emt 0:00:27]} 9. Rd1 {[%emt 0:00:02]} Na5 {[%emt 0:00:12]} 10. Bc2 {[%emt 0:00:01]} c5 {[%emt 0:00:01]} 11. d4 {[%emt 0:00:01]} Qc7 {[%emt 0:00:00]} 12. d5 {[%emt 0:00:02]} Nc4 {[%emt 0:00:12]} 13. b3 {[%emt 0:00:03]} Nb6 {[%emt 0:00:02]} 14. a4 {[%emt 0:00:01]} Bd7 {[%emt 0:00:11]} 15. a5 {[%emt 0:00:07]} Nc8 {[%emt 0:00:01]} 16. Nbd2 {[%emt 0:00:16]} Re8 {[%emt 0:00:01]} 17. Nf1 {[%emt 0:00:03]} Bd8 {[%emt 0:00:05]} 18. Ng3 {[%emt 0:00:13]} Ne7 {[%emt 0:00:01]} 19. Nh4 {[%emt 0:00:02]} g6 {[%emt 0:00:07]} 20. Rf1 {[%emt 0:00:08]} Nexd5 {[%emt 0:00:16]} 21. exd5 {[%emt 0:00:03]} Nxd5 {[%emt 0:00:01]} 22. Qf3 {[%emt 0:00:29]} Bxh4 {[%emt 0:00:17]} 23. Qxd5 {[%emt 0:00:01]} Bc6 {[%emt 0:00:03]} 24. Qd2 {[%emt 0:00:03]} d5 {[%emt 0:00:07]} 25. Qh6 {[%emt 0:00:03]} Bf6 {[%emt 0:00:01]} 26. Nh5 {[%emt 0:00:03]} Bh8 {[%emt 0:00:02]} 27. Bg5 {[%emt 0:00:18]} Re6 {[%emt 0:00:00]} 28. Bf5 {[%emt 0:00:01]} gxf5 {[%emt 0:00:32]} 29. Bf6 {[%emt 0:00:03]} Bxf6 {[%emt 0:00:04]} 30. Nxf6+ {[%emt 0:00:02]} Rxf6 {[%emt 0:00:01]} 31. Qxf6 {[%emt 0:00:01]} f4 {[%emt 0:00:03]} 32. h4 {[%emt 0:00:29]} Re8 {[%emt 0:00:06]} 33. h5 {[%emt 0:00:02]} Re6 {[%emt 0:00:07]} 34. Qg5+ {[%emt 0:00:01]} Kf8 {[%emt 0:00:03]} 35. Rfe1 {[%emt 0:00:03]} h6 {[%emt 0:00:02]} 36. Qf5 {[%emt 0:00:03]} e4 {[%emt 0:00:06]} 37. b4 {[%emt 0:00:12]} Qe5 {[%emt 0:00:12]} 38. Qh3 {[%emt 0:00:02]} c4 {[%emt 0:00:14]} 39. Rad1 {[%emt 0:00:01]} Kg7 {[%emt 0:00:04]} 40. Rd4 {[%emt 0:00:01]} Rf6 {[%emt 0:00:04]} 41. f3 {[%emt 0:00:01]} Qg5 {[%emt 0:00:03]} 42. Rf1 {[%emt 0:00:04]} Rf5 {[%emt 0:00:06]} 43. Qh2 {[%emt 0:00:03]} e3 {[%emt 0:00:08]} 44. Re1 {[%emt 0:00:05]} Bd7 {[%emt 0:00:01]} 45. Kf1 {[%emt 0:00:04]} Rf6 {[%emt 0:00:01]} 46. Ke2 {[%emt 0:00:02]} Bf5 {[%emt 0:00:01]} 47. Rg1 {[%emt 0:00:06]} Bd3+ {[%emt 0:00:05]} 48. Kd1 {[%emt 0:00:01]} e2+ {[%emt 0:00:03]} 49. Ke1 {[%emt 0:00:19]} Qe5 {[%emt 0:00:01]} 50. g3 {[%emt 0:00:00]} Qe3 {[%emt 0:00:01]} 51. gxf4+ {[%emt 0:00:01]} Kh7 {[%emt 0:00:06]} 52. Qg2 {[%emt 0:00:01]} Qc1+ {[%emt 0:00:01]} 53. Kf2 {[%emt 0:00:00]} Qf1+ {[%emt 0:00:01]} 54. Rxf1 {[%emt 0:00:01]} exf1=Q+ {[%emt 0:00:03]} 55. Qxf1 {[%emt 0:00:01]} Bxf1 56. Kxf1 {[%emt 0:00:01]} Rf5 {[%emt 0:00:02]} 57. Kg2 {[%emt 0:00:02]} Kg7 {[%emt 0:00:01]} 58. Kg3 {[%emt 0:00:02]} Kf6 {[%emt 0:00:01]} 59. Kg4 {[%emt 0:00:01]} Ke6 {[%emt 0:00:01]} 60. Rd1 {[%emt 0:00:01]} Rf6 {[%emt 0:00:02]} 61. Re1+ {[%emt 0:00:03]} Kd7 {[%emt 0:00:01]} 62. f5 {[%emt 0:00:02]} Rd6 {[%emt 0:00:05]} 63. Rd1 {[%emt 0:00:01]} d4 {[%emt 0:00:01]} 64. cxd4 {[%emt 0:00:02]} Kc6 {[%emt 0:00:01]} 65. Kf4 {[%emt 0:00:04]} Kd5 {[%emt 0:00:00]} 66. Rc1 {[%emt 0:00:03]} Rc6 {[%emt 0:00:04]} 67. Ke3 {[%emt 0:00:05]} Rf6 {[%emt 0:00:03]} 68. Rg1 {[%emt 0:00:02]} Rxf5 {[%emt 0:00:01]} 69. Rg8 {[%emt 0:00:01]} Rxh5 {[%emt 0:00:03]} 70. Rd8+ {[%emt 0:00:01]} Kc6 {[%emt 0:00:02]} 71. Rb8 {[%emt 0:00:01]} Rh1 {[%emt 0:00:05]} 72. Rb6+ {[%emt 0:00:05]} Kd5 {[%emt 0:00:01]} 73. Rxa6 {[%emt 0:00:01]} Re1+ {[%emt 0:00:01]} 74. Kd2 {[%emt 0:00:01]} Rb1 {[%emt 0:00:03]} 75. Ra8 {[%emt 0:00:11]} Rxb4 {[%emt 0:00:04]} 76. a6 {[%emt 0:00:00]} Ra4 {[%emt 0:00:02]} 77. a7 {[%emt 0:00:01]} Kc6 {[%emt 0:00:00]} 78. d5+ {[%emt 0:00:01]} Kb7 {[%emt 0:00:02]} 79. d6 {[%emt 0:00:01]} Ra2+ {[%emt 0:00:03]} 80. Ke3 {[%emt 0:00:02]} Kxa8 {[%emt 0:00:01]} 81. d7 {[%emt 0:00:01]} Ra3+ {[%emt 0:00:01]} 82. Kd4 {[%emt 0:00:00]} 0-1

[Event "Vugar Gashimov Memorial Blitz 2024"]
[Site "Shusha"]
[Date "2024.09.28"]
[Round "3.4"]
[White "Mamedov, Rauf"]
[Black "Aravindh, Chithambaram VR."]
[Result "0-1"]
[ECO "C25"]
[WhiteElo "2637"]
[BlackElo "2698"]
[Annotator "TA"]
[PlyCount "102"]
[EventDate "2024.09.28"]
[EventType "tourn"]
[EventCountry "AZE"]
[SourceTitle "playchess.com"]
[Source "ChessBase"]
[SourceQuality "1"]
[TimeControl "180+2"]

{[%evp 13,102,4,9,-4,17,14,29,31,33,41,34,42,52,57,47,50,74,67,81,45,46,34,25,0,0,-34,48,0,0,-20,-31,-38,-28,-58,-35,-79,-82,-253,-243,-257,-253,-232,-256,-225,-199,-212,-203,-214,-181,-175,-145,-245,-239,-216,-156,-316,-329,-378,-369,-1247,-1125,-1100,0,-29990,-29975,-29992,-29965,-29991,-29989,-29989,-29990,-29994,-29989,-29989,-29990,-29989,0,-29989,-29981,-29979,-5700,-29972,-29976,-29980,-29977,-29989,-29990,-29992,-29992,-29998,-29999]} 1. e4 {[%emt 0:00:02]} e5 {[%emt 0:00:02]} 2. Nc3 {[%emt 0:00:01]} Nc6 {[%emt 0:00:01]} 3. g3 {[%emt 0:00:02]} g6 {[%emt 0:00:03]} 4. Bg2 {[%emt 0:00:01]} Bg7 {[%emt 0:00:02]} 5. d3 {[%emt 0:00:02]} d6 {[%emt 0:00:03]} 6. Nge2 {[%emt 0:00:01]} Nge7 {[%emt 0:00:02]} 7. O-O {[%emt 0:00:04]} O-O {[%emt 0:00:03]} 8. Rb1 {[%emt 0:00:11]} Be6 {[%emt 0:00:08]} 9. Nd5 {[%emt 0:00:02]} Bxd5 {[%emt 0:00:06]} 10. exd5 {[%emt 0:00:01] White has an edge.} Nb4 {[%emt 0:00:02][%csl LRa2,LRd5]} 11. a3 {[%emt 0:00:14]} Nbxd5 {[%emt 0:00:04]} 12. c4 {[%emt 0:00:00] Against c6} Nf6 {[%emt 0:00:06]} 13. Bxb7 {[%emt 0:00:01]} Rb8 {[%emt 0:00:01]} 14. Bg2 {[%emt 0:00:02]} d5 {[%emt 0:00:17]} 15. Qa4 {[%emt 0:00:30]} c6 {[%emt 0:00:16]} 16. Nc3 {[%emt 0:00:04]} Nd7 {[%emt 0:00:20]} 17. Bg5 {[%emt 0:00:19]} (17. Qxa7 Ra8 18. Qb7 d4 $15 (18... Nc5 19. Qb4 $15)) 17... f6 {[%emt 0:00:09]} 18. Bd2 {[%emt 0:00:01][%cal Rc4d5]} Nc5 {[%emt 0:00:06][%csl LRa4,LRd3]} 19. Qc2 {[%emt 0:00:01]} Ne6 {[%emt 0:00:06]} (19... Nb3 $15) 20. Qa4 {[%emt 0:00:07]} (20. b4 $14) 20... Nc5 {[%emt 0:00:13][%csl LRa4,LRd3]} 21. Qc2 {[%emt 0:00:03]} Nb3 {[%emt 0:00:02]} 22. Rfd1 {[%emt 0:00:19]} Kh8 {[%emt 0:00:18]} 23. Be1 {[%emt 0:00:00]} f5 {[%emt 0:00:02]} 24. Ne2 {[%emt 0:00:03]} f4 {[%emt 0:00:07] [#] aiming for ...f3. Black keeps a firm grip on the game.} 25. f3 $2 {[%emt 0:00:41]} (25. d4 $17 {was called for.} fxg3 (25... Nxd4 26. Nxd4 exd4 27. Bb4 $14) 26. hxg3) 25... Nf5 $19 {[%emt 0:00:03] And now ...Ne3 would win. A dynamic duo of knights.} 26. Bf2 {[%emt 0:00:01]} Ne3 {[%emt 0:00:05]} 27. Bxe3 {[%emt 0:00:01]} fxe3 {[%emt 0:00:02]} 28. Kh1 {[%emt 0:00:21]} Nd2 {[%emt 0:00:04]} 29. Rxd2 {[%emt 0:00:15]} exd2 {[%emt 0:00:01]} 30. cxd5 {[%emt 0:00:01]} cxd5 {[%emt 0:00:07][%cal Oe5e4] Hoping for ...e4!} 31. Qxd2 {[%emt 0:00:01]} e4 {[%emt 0:00:22]} 32. Nf4 {[%emt 0:00:12]} (32. fxe4 $17 dxe4 33. Bxe4) 32... exf3 {[%emt 0:00:11]} 33. Bxf3 {[%emt 0:00:02]} Qf6 {[%emt 0:00:01] Inhibits Ne6. Strongly threatening ...g5.} 34. Rf1 $2 {[%emt 0:00:13]} (34. Bxd5 $17 Rxb2 35. Qxb2 Qxb2 36. Rxb2 Bxb2 37. a4) 34... Rxb2 {[%emt 0:00:05]} (34... Qxb2 35. Qd1 $19) 35. Qe3 {[%emt 0:00:01]} Qe5 {[%emt 0:00:08]} 36. Qxa7 {[%emt 0:00:03]} (36. Qxe5 Bxe5 37. Bxd5) 36... g5 {[%emt 0:00:03]} 37. Nh5 {[%emt 0:00:02] [#]} Rxf3 $2 $40 {[%emt 0:00:20][%mdl 128] Black is up to no good.} 38. Rc1 $2 {[%emt 0:00:08][%mdl 8192]} (38. Rxf3 $11 Qe1+ 39. Qg1) 38... Rf8 {[%emt 0:00:02]} (38... Rxd3 39. Rc8+) 39. Rg1 {[%emt 0:00:04]} Rbf2 {[%emt 0:00:02]} 40. a4 {[%emt 0:00:02]} R2f7 {[%emt 0:00:02]} 41. Qc5 {[%emt 0:00:01]} Qe2 {[%emt 0:00:01][%csl LRd3,LRh5]} 42. Nxg7 {[%emt 0:00:02]} Qf3+ {[%emt 0:00:02]} 43. Rg2 {[%emt 0:00:00]} Qd1+ {[%emt 0:00:03]} 44. Rg1 {[%emt 0:00:01]} Qf3+ {[%emt 0:00:02]} (44... Qxa4 45. Ne6 $17) 45. Rg2 {[%emt 0:00:00]} Kxg7 {[%emt 0:00:02]} 46. h4 {[%emt 0:00:03]} Qf5 {[%emt 0:00:02]} (46... Qxd3 $142 47. Kh2 gxh4 48. Kh3 Qf5+ 49. Kh2 Qe4 (49... Qe5 {gets mated.} 50. Qc2 Rf3 51. Qb2 d4 52. Kh1 hxg3 53. Qb7+ Kh8 54. Qxf3 Rxf3 55. Rg1 g2+ 56. Kxg2 Qg3+ 57. Kh1 Qh3#) 50. gxh4+ Kh8 51. Qc3+ d4 52. Qg3 d3 53. a5 d2 (53... Qd4 {leads to mate.} 54. a6 d2 55. a7 d1=Q 56. Qg8+ Rxg8 57. Rxg8+ Kxg8 58. a8=Q+ Rf8 59. Qg2+ Kh8 60. Kg3 Qe1+ 61. Kh2 Qf4+ 62. Kh3 Qfxh4#) 54. Qc3+ Rf6 55. Qg3 Qxg2+ (55... d1=B 56. Qg7#) 56. Kxg2 d1=Q (56... d1=B $2 57. Qc3 $19) 57. h5 Qf1+ (57... Qxh5 58. Qe3 Rg8+ 59. Qg3 Qf3+ 60. Kg1 Rxg3+ 61. Kh2 Rh6#) 58. Kh2 Rf2+ 59. Qxf2 Rxf2+ 60. Kg3 Rg2+ 61. Kh4 Qh1#) 47. Kh2 {[%emt 0:00:04]} h6 {[%emt 0:00:03] Black mates.} 48. a5 {[%emt 0:00:01]} Qe5 {[%emt 0:00:02]} 49. Kh3 {[%emt 0:00:05]} Rf3 {[%emt 0:00:02]} 50. a6 {[%emt 0:00:02]} gxh4 {[%emt 0:00:01]} 51. Kxh4 {[%emt 0:00:03]} Qg5+ {[%emt 0:00:01] Weighted Error Value: White=0.65/Black=0.53.  Loses game:     	White=1     	---        Mistake:       	White=4     	Black=1      Inaccurate:     	White=4     	---        OK:         	White=12    	Black=10     Best:        	White=3     	Black=4} 0-1

[Event "Vugar Gashimov Memorial Blitz 2024"]
[Site "Shusha"]
[Date "2024.09.28"]
[Round "4.1"]
[White "Mamedyarov, Shakhriyar"]
[Black "Aravindh, Chithambaram VR."]
[Result "1-0"]
[ECO "D36"]
[WhiteElo "2733"]
[BlackElo "2698"]
[Annotator "TA"]
[PlyCount "95"]
[EventDate "2024.09.28"]
[EventType "tourn"]
[EventCountry "AZE"]
[SourceTitle "playchess.com"]
[Source "ChessBase"]
[SourceQuality "1"]
[TimeControl "180+2"]

{[%evp 28,95,27,24,8,15,22,15,24,17,25,15,18,21,23,28,16,17,185,12,17,21,20,8,32,57,31,43,62,33,14,19,87,66,116,23,23,23,69,69,94,33,33,33,33,33,33,33,33,33,33,33,33,33,33,34,41,43,358,342,322,301,718,694,706,676,830,814,769,628]} 1. d4 {[%emt 0:00:00]} Nf6 {[%emt 0:00:01]} 2. c4 {[%emt 0:00:01]} e6 {[%emt 0:00:02]} 3. Nc3 {[%emt 0:00:01]} d5 {[%emt 0:00:06]} 4. cxd5 {[%emt 0:00:01]} exd5 {[%emt 0:00:02]} 5. Bg5 {[%emt 0:00:01]} c6 {[%emt 0:00:04]} 6. e3 {[%emt 0:00:01]} Be7 {[%emt 0:00:03]} 7. Bd3 {[%emt 0:00:02]} Nbd7 {[%emt 0:00:01][%cal Bb8d7,Bd7f8,Bf8e6][%mdl 32]} 8. Qc2 {[%emt 0:00:11]} Nf8 {[%emt 0:00:04]} 9. Nf3 {[%emt 0:00:03]} Ne6 {[%emt 0:00:02]} 10. Bh4 {[%emt 0:00:05]} g6 {[%emt 0:00:02]} 11. O-O {[%emt 0:00:12]} Ng7 {[%emt 0:00:02]} 12. b4 {[%emt 0:00:08]} a6 {[%emt 0:00:10]} 13. Rab1 {[%emt 0:00:03]} O-O {[%emt 0:00:08]} 14. a4 {[%emt 0:00:01]} Bf5 {[%emt 0:00:08]} 15. b5 {[%emt 0:00:14]} axb5 {[%emt 0:00:24]} 16. axb5 {[%emt 0:00:01]} Bxd3 {[%emt 0:00:09]} 17. Qxd3 {[%emt 0:00:01]} Nf5 {[%emt 0:00:04] The position is equal.} 18. Bxf6 {[%emt 0:00:07]} Bxf6 {[%emt 0:00:01]} 19. Rfc1 {[%emt 0:00:03]} Ra3 {[%emt 0:00:14]} 20. Qc2 {[%emt 0:00:06]} Qa5 {[%emt 0:00:23]} 21. bxc6 {[%emt 0:00:11]} bxc6 {[%emt 0:00:02]} 22. Ne2 {[%emt 0:00:02]} Ra2 $2 {[%emt 0:00:08]} (22... Rc8 $11 {and Black is okay.}) 23. Qd1 $2 {[%emt 0:00:27]} (23. Qxc6 $18 {Black must now prevent Nc3.} Rxe2 24. Qxf6) 23... Rc8 $11 {[%emt 0:00:09][%cal Bf8c8,Bc8a8,Ba8a2][%mdl 32]} 24. Nf4 {[%emt 0:00:03]} Nd6 {[%emt 0:00:01]} 25. Ra1 {[%emt 0:00:18]} Ne4 {[%emt 0:00:02]} 26. Rxa2 {[%emt 0:00:02]} Qxa2 {[%emt 0:00:02]} 27. Qc2 {[%emt 0:01:31]} Ra8 {[%emt 0:00:27]} 28. Qxa2 {[%emt 0:00:00]} Rxa2 {[%emt 0:00:02]} 29. Nd3 {[%emt 0:00:00]} (29. Rxc6 $2 {is a self mate.} Ra1+ (29... Rxf2 $2 30. Nxd5 Bxd4 31. exd4 $18) (29... Rxf2 $2 30. Nxd5 Bxd4 31. exd4 $18)) 29... g5 {[%emt 0:00:30]} (29... Be7 $11 {keeps the balance.}) 30. g4 $16 {[%emt 0:00:00][%cal Of3e1]} h5 {[%emt 0:00:02]} 31. h3 {[%emt 0:00:00]} ({But not} 31. Rxc6 $6 hxg4 32. Rc8+ Kg7 $11) (31. gxh5 $16 {[%cal Of3e1] aiming for Nfe1!} g4 32. Nfe1) 31... hxg4 {[%emt 0:00:02]} 32. hxg4 {[%emt 0:00:00]} Be7 {[%emt 0:00:23]} (32... Ra3 $11 {is superior.} 33. Nc5 Nxc5 34. Rxc5 Ra6) 33. Rxc6 $14 {[%emt 0:00:00]} Ra3 {[%emt 0:00:02]} 34. Nc5 {[%emt 0:00:00]} (34. Nfe1 $16) 34... Bxc5 {[%emt 0:00:05]} 35. dxc5 {[%emt 0:00:00][%mdl 4096] [#] Endgame. Rc8+ is the strong threat. KRN-KRN} Ra1+ {[%emt 0:00:01]} 36. Kg2 {[%emt 0:00:00]} Ra2 {[%emt 0:00:01]} 37. Nd4 {[%emt 0:00:00] Rc8+ would now be deadly.} Rxf2+ {[%emt 0:00:02]} 38. Kg1 {[%emt 0:00:22]} Ra2 {[%emt 0:00:03]} 39. Rc8+ {[%emt 0:00:00]} Kg7 {[%emt 0:00:01]} 40. c6 {[%emt 0:00:00]} Ra1+ {[%emt 0:00:03]} 41. Kg2 {[%emt 0:00:00]} Rc1 {[%emt 0:00:01]} 42. c7 {[%emt 0:00:00] Threatens to win with Nb5.} Kf6 $2 {[%emt 0:00:02][%mdl 8192] [#]} (42... Rc5 $1 $14) 43. Nb5 $1 $18 {[%emt 0:00:00]} Rc2+ {[%emt 0:00:02]} 44. Kf1 {[%emt 0:00:00]} Ng3+ $2 {[%emt 0:00:04]} (44... Nc3 45. Nd6 Rc1+ 46. Kg2 Rc2+ 47. Kh1 Rc1+ (47... Ne4 $2 48. Ne8+ Ke5 49. Rd8 $18) 48. Kg2 Rc2+ 49. Kh3 Ne4 50. Ne8+ Ke7) 45. Ke1 {[%emt 0:00:00] White is clearly winning.} Rc1+ {[%emt 0:00:02]} 46. Kd2 {[%emt 0:00:00]} Rc5 {[%emt 0:00:01]} 47. Rd8 {[%emt 0:00:00]} Ne4+ {[%emt 0:00:02]} 48. Kd1 {[%emt 0:00:03] Weighted Error Value: White=0.15 (very precise) /Black=0.39.  Loses game:     	---       	Black=2      Missed win:     	White=1     	---        Mistake:       	White=2     	Black=4      Inaccurate:     	White=1     	---        OK:         	White=14    	Black=12     Best:        	White=3     	---        Strong:       	White=1     	---} 1-0

[Event "Vugar Gashimov Memorial Blitz 2024"]
[Site "Shusha"]
[Date "2024.09.28"]
[Round "4.2"]
[White "Suleymanli, Aydin"]
[Black "Mamedov, Rauf"]
[Result "1-0"]
[ECO "C41"]
[WhiteElo "2632"]
[BlackElo "2637"]
[Annotator "TA"]
[PlyCount "35"]
[EventDate "2024.09.28"]
[EventType "tourn"]
[EventCountry "AZE"]
[SourceTitle "playchess.com"]
[Source "ChessBase"]
[SourceQuality "1"]
[TimeControl "180+2"]

{[%evp 12,35,53,45,44,40,50,39,92,70,73,34,35,44,398,413,404,394,437,445,431,424,684,681,1065,1082]} 1. e4 {[%emt 0:00:01]} d6 {[%emt 0:00:00]} 2. d4 {[%emt 0:00:01]} Nf6 {[%emt 0:00:01]} 3. Nc3 {[%emt 0:00:01]} e5 {[%emt 0:00:01]} 4. Nf3 {[%emt 0:00:01]} exd4 {[%emt 0:00:01]} 5. Nxd4 {[%emt 0:00:02]} g6 {[%emt 0:00:00][%cal Bg7g6,Bg6g5][%mdl 32]} 6. Bg5 {[%emt 0:00:12]} Bg7 {[%emt 0:00:02]} 7. Qd2 {[%emt 0:00:03]} h6 {[%emt 0:00:04]} 8. Bf4 {[%emt 0:00:22]} g5 {[%emt 0:00:01]} 9. Bg3 {[%emt 0:00:05]} Nh5 {[%emt 0:00:02]} (9... Nc6 $14) 10. O-O-O {[%emt 0:00:05] White is more active.} Nc6 {[%emt 0:00:03]} 11. Nf5 {[%emt 0:00:25]} Bxf5 {[%emt 0:00:25]} 12. exf5 {[%emt 0:00:02][%cal Be4f5,Bf5f6][%mdl 32] [#] Strongly threatening Qe2+.} Qd7 $2 {[%emt 0:00:22][%mdl 8192] A mistake that costs the game.} ({Better is} 12... Nxg3 $14 13. hxg3 Qf6) 13. Qe2+ $18 {[%emt 0:00:02]} Ne7 {[%emt 0:00:16]} 14. Qxh5 {[%emt 0:00:04]} Bxc3 {[%emt 0:00:01]} 15. bxc3 {[%emt 0:00:03] And now f6 would win. White is clearly winning.} O-O-O {[%emt 0:00:13]} 16. Qxf7 {[%emt 0:00:13]} Kb8 {[%emt 0:00:09]} (16... Nxf5 $142 17. Qxd7+ Rxd7) 17. f6 {[%emt 0:00:05]} Qf5 {[%emt 0:00:11]} 18. Bd3 {[%emt 0:00:09] Weighted Error Value: White=0.10 (very precise) /Black=0.92.  Loses game:     	---       	Black=1      Mistake:       	---       	Black=2      Inaccurate:     	White=1     	Black=1      OK:         	White=3     	Black=1      Best:        	White=1     	Black=1} 1-0